bitfinex-derivatives/quotes_SOLF0:USTF0_20220108
["timestamp","ask_amount","ask_price","bid_price","bid_amount"]
[1641654262670,4.0,142.91,142.9,3.16270764]
[1641654263071,14.99814549,142.91,142.9,3.16270764]
[1641654263271,19.99814549,142.91,142.9,3.16270764]
[1641654263471,8.08211107,142.91,142.9,57.75548571]
[1641654263873,5.0,142.91,142.9,57.75548571]
[1641654264072,5.0,142.91,142.9,3.16270764]
[1641654264270,27.66479,142.96,142.9,3.16270764]
[1641654264471,7.000105,142.91,142.9,3.16270764]
[1641654264872,34.664895,142.91,142.9,3.16270764]
[1641654265071,34.664895,142.91,142.86,20.03318258]
[1641654265271,27.66479,142.91,142.86,20.03318258]
[1641654265474,27.66479,142.91,142.86,8.258e-05]
[1641654265672,5.59923106,142.88,142.86,8.258e-05]
[1641654265971,1.02425788,142.9,142.85,57.75548571]
[1641654266172,5.59870087,142.9,142.85,57.75548571]
[1641654266373,6.99888018,142.87,142.85,57.75548571]
[1641654266574,5.60035217,142.85,142.82,8.258e-05]
[1641654266771,5.60035217,142.85,142.8,96.25914286]
[1641654266974,5.60232138,142.8,142.79,58.58420703]
[1641654267376,6.72057527,142.85,142.79,58.58420703]
[1641654267973,7.00304633,142.86,142.76,1.75]
[1641654268174,7.00304633,142.86,142.78,96.25914286]
[1641654268772,7.00427261,142.79,142.78,96.25914286]
[1641654269174,7.00427261,142.79,142.75,96.25914286]
[1641654269375,7.00427261,142.79,142.77,4.0]
[1641654269576,20.0,142.89,142.75,96.25914286]
[1641654269775,5.59972358,142.87,142.75,96.25914286]
[1641654270275,5.59972358,142.87,142.76,96.25914286]
[1641654270476,5.59972358,142.87,142.76,100.25914286]
[1641654270675,6.99961502,142.83,142.77,1.75]
[1641654270875,6.99863527,142.85,142.82,59.32958]
[1641654271075,6.99863527,142.85,142.83,1.75]
[1641654271275,27.66479,142.94,142.83,1.75]
[1641654271478,27.66479,142.96,142.82,55.32958]
[1641654271676,1.02467479,142.93,142.86,4.0]
[1641654271875,6.99594235,142.91,142.87,4.0]
[1641654272077,6.7133972,143.0,142.87,4.0]
[1641654272078,154.0029,143.11,142.9,4.0]
[1641654272278,6.99349605,142.96,142.93,4.0]
[1641654272478,6.99349605,142.96,142.95,4.0]
[1641654272678,6.99154024,143.0,142.95,4.0]
[1641654272878,27.66479,143.04,142.96,31.66479]
[1641654273078,6.99080709,143.02,142.96,31.66479]
[1641654273278,6.99080709,143.02,143.0,4.0]
[1641654273478,6.99080709,143.02,142.97,1.748]
[1641654273678,6.99080709,143.02,142.98,4.0]
[1641654273879,6.99080709,143.02,142.96,27.66479]
[1641654273880,6.99300699,142.99,142.95,1.748]
[1641654274080,6.99300699,142.99,142.93,96.25914286]
[1641654274280,20.0,143.18,142.98,4.0]
[1641654274480,6.99056274,143.02,142.99,4.0]
[1641654274680,5.59163686,143.08,143.01,4.0]
[1641654274880,6.99154024,143.02,143.01,27.66479]
[1641654275382,1.02298643,143.07,143.01,27.66479]
[1641654275383,6.9898298,143.04,143.01,35.66479]
[1641654275581,6.9898298,143.04,143.02,4.0]
[1641654275782,6.9898298,143.04,143.0,1.747]
[1641654275783,6.9898298,143.04,143.0,5.747]
[1641654276080,6.99129584,143.03,142.99,27.66479]
[1641654276484,6.99129584,143.03,143.01,4.0]
[1641654276683,6.99129584,143.03,143.0,4.0]
[1641654276882,6.99129584,143.03,142.99,27.66479]
[1641654277083,27.96713862,143.03,143.02,39.24981767]
[1641654277282,27.96713862,143.03,142.98,58.8747265]
[1641654277283,5.59210598,143.06,142.98,58.8747265]
[1641654277483,1.02351881,143.02,142.98,58.8747265]
[1641654277682,1.02351881,143.02,142.93,100.25914286]
[1641654277683,1.02351881,143.02,142.97,58.8747265]
[1641654278083,1.02351881,143.05,142.97,58.8747265]
[1641654278283,6.99545296,143.03,142.97,58.8747265]
[1641654278483,6.6176615,143.01,142.97,58.8747265]
[1641654278685,6.99741096,142.98,142.93,58.8747265]
[1641654278884,55.32958,142.94,142.93,58.8747265]
[1641654279285,56.35309881,142.94,142.93,58.8747265]
[1641654279884,56.35309881,142.94,142.87,62.8747265]
[1641654280087,56.35309881,142.94,142.87,52.8747265]
[1641654280285,6.99912511,142.88,142.87,56.8747265]
[1641654280688,6.99912511,142.88,142.87,4.0]
[1641654280891,6.99643182,142.9,142.87,31.66479]
[1641654281090,6.99643182,142.9,142.87,27.66479]
[1641654281287,27.99258197,142.91,142.89,8.0]
[1641654281488,27.99258197,142.91,142.82,5.749]
[1641654281687,5.59637651,142.95,142.83,4.0]
[1641654281989,5.59799325,142.91,142.88,4.0]
[1641654282188,5.59595276,142.97,142.88,4.0]
[1641654282489,6.99765579,142.89,142.81,38.84291418]
[1641654282690,6.99765579,142.89,142.83,4.0]
[1641654282889,27.66479,142.88,142.81,38.84291418]
[1641654283290,7.00059505,142.82,142.81,38.84291418]
[1641654283490,7.00059505,142.82,142.8,4.0]
[1641654283690,7.00231076,142.81,142.79,96.25914286]
[1641654283889,7.00451791,142.8,142.79,96.25914286]
[1641654284289,7.00451791,142.8,142.78,4.0]
[1641654284491,5.59975854,142.87,142.75,96.25914286]
[1641654284688,5.59975854,142.87,142.75,100.25914286]
[1641654284889,27.66479,142.83,142.75,4.0]
[1641654285291,27.66479,142.83,142.77,4.0]
[1641654285489,7.00182047,142.81,142.74,96.25914286]
[1641654285689,1.02617175,142.86,142.78,4.0]
[1641654285891,5.59421208,143.01,142.85,4.0]
[1641654286089,5.59421208,143.01,142.91,4.0]
[1641654286289,5.59267649,143.05,142.95,4.0]
[1641654286490,5.59267649,143.05,142.94,4.0]
[1641654286691,5.59267649,143.05,142.91,1.748]
[1641654286692,6.9937406,142.99,142.91,1.748]
[1641654286891,6.99447437,142.97,142.91,4.0]
[1641654287103,6.99447437,142.97,142.89,1.748]
[1641654287292,6.99447437,142.97,142.88,27.66479]
[1641654287491,6.99447437,142.97,142.91,4.0]
[1641654287693,27.66479,143.0,142.92,4.0]
[1641654287891,6.99716615,142.93,142.87,1.749]
[1641654288092,6.99716615,142.93,142.86,4.0]
[1641654288291,1.02010592,142.92,142.89,4.0]
[1641654288491,1.02010592,142.92,142.86,1.749]
[1641654288691,6.99447437,142.97,142.91,4.0]
[1641654288892,55.64268746,143.0,142.92,4.0]
[1641654288893,6.99520828,142.96,142.92,4.0]
[1641654289093,6.99520828,142.96,142.89,27.66479]
[1641654289597,1.02016918,142.96,142.93,4.0]
[1641654290095,1.02016918,142.97,142.95,4.0]
[1641654290294,1.02016918,142.97,142.93,1.748]
[1641654290495,1.02016918,142.97,142.91,58.95000433]
[1641654290695,8.01366523,142.99,142.95,4.0]
[1641654290894,8.01366523,142.99,142.91,58.95000433]
[1641654291095,8.01366523,142.99,142.92,1.748]
[1641654291096,1.02016918,142.98,142.92,1.748]
[1641654291297,1.02016918,142.98,142.91,58.95000433]
[1641654291596,8.01439894,142.98,142.91,60.69800433]
[1641654291797,8.01439894,142.98,142.94,4.0]
[1641654292198,8.01439894,142.98,142.92,58.95000433]
[1641654292199,6.99422976,142.98,142.92,58.95000433]
[1641654292598,6.99545296,142.95,142.94,4.0]
[1641654292997,6.99545296,142.95,142.91,4.0]
[1641654293198,6.99643182,142.93,142.9,58.95000433]
[1641654293597,6.99520828,142.96,142.92,4.0]
[1641654293797,6.99520828,142.96,142.93,4.0]
[1641654293998,6.99520828,142.96,142.91,58.95000433]
[1641654294197,6.99520828,142.96,142.93,4.0]
[1641654294499,6.99520828,142.96,142.91,58.95000433]
[1641654294701,6.99814549,142.92,142.9,58.95000433]
[1641654295099,34.66293549,142.92,142.9,58.95000433]
[1641654295400,6.99765579,142.91,142.9,58.95000433]
[1641654295800,6.99765579,142.91,142.86,58.95000433]
[1641654296001,7.00035002,142.87,142.86,58.95000433]
[1641654296202,5.60001124,142.86,142.82,96.25914286]
[1641654296401,5.60001124,142.86,142.82,100.25914286]
[1641654296601,8.02241585,142.87,142.85,4.0]
[1641654296803,6.99863527,142.89,142.86,16.9605661]
[1641654297001,34.66171135,142.92,142.86,16.9605661]
[1641654297303,6.99839037,142.89,142.87,4.0]
[1641654297501,6.99839037,142.89,142.86,16.9605661]
[1641654297702,6.99986,142.87,142.86,16.9605661]
[1641654297901,6.99986,142.87,142.83,16.9605661]
[1641654298201,1.02267133,142.86,142.83,16.9605661]
[1641654298401,7.00133025,142.84,142.83,16.9605661]
[1641654299002,34.66612025,142.84,142.77,100.25914286]
[1641654299203,34.66612025,142.84,142.77,96.25914286]
[1641654299402,34.66612025,142.84,142.78,4.0]
[1641654300203,34.66612025,142.84,142.79,4.0]
[1641654300404,34.66612025,142.84,142.83,4.0]
[1641654300603,7.00133025,142.84,142.75,1.75]
[1641654300802,6.71603704,142.95,142.83,8.0]
[1641654301003,6.99667658,142.93,142.88,4.0]
[1641654301205,27.66479,142.97,142.92,4.0]
[1641654301402,27.66479,142.97,142.9,4.0]
[1641654301606,27.66479,142.99,142.92,4.0]
[1641654301903,27.66479,142.99,142.88,1.748]
[1641654302105,27.66479,142.99,142.87,4.0]
[1641654302306,1.02130756,142.98,142.9,4.0]
[1641654302507,6.99839037,142.93,142.85,4.0]
[1641654302710,5.59562067,142.97,142.83,96.25914286]
[1641654302907,7.00157535,142.86,142.83,96.25914286]
[1641654303106,34.66636535,142.86,142.83,96.25914286]
[1641654303306,27.66479,142.86,142.83,96.25914286]
[1641654303508,27.66479,142.86,142.85,4.0]
[1641654303710,5.598019,142.91,142.79,96.25914286]
[1641654303910,5.598019,142.91,142.8,4.0]
[1641654304108,5.598019,142.91,142.78,96.25914286]
[1641654304308,5.598019,142.91,142.9,4.0]
[1641654304509,5.59620298,142.96,142.9,4.0]
[1641654304708,6.99839037,142.94,142.91,4.0]
[1641654304911,5.59620298,142.96,142.88,4.0]
[1641654305108,6.99667658,142.98,142.95,4.0]
[1641654305311,6.99667658,142.98,142.89,4.0]
[1641654305609,6.99667658,142.98,142.97,4.0]
[1641654305811,40.25396783,143.01,142.91,4.0]
[1641654306015,12.58917783,143.01,142.96,4.0]
[1641654306212,12.58917783,143.01,142.92,5.748]
[1641654306412,12.58917783,143.01,142.92,66.26401547]
[1641654306611,12.58917783,143.01,142.98,4.0]
[1641654306814,12.58917783,143.01,142.94,4.0]
[1641654307012,27.66479,143.05,142.95,4.0]
[1641654307213,34.65706354,143.07,142.95,1.748]
[1641654307415,27.66479,143.07,143.06,4.0]
[1641654307612,16.6471002,143.14,143.06,4.0]
[1641654307814,16.6471002,143.14,142.98,1.747]
[1641654308014,6.9898298,143.12,142.98,1.747]
[1641654308214,6.99080709,143.1,142.98,1.747]
[1641654308416,6.99080709,143.1,143.01,4.0]
[1641654309014,20.0,143.06,142.97,27.66479]
[1641654309430,12.5874218,143.03,142.99,3.19409804]
[1641654309614,5.59343663,143.03,142.99,3.19409804]
[1641654309916,6.71048627,143.06,142.99,3.19409804]
[1641654310514,13.69724981,143.12,143.05,4.0]
[1641654310716,13.69724981,143.12,143.01,4.0]
[1641654310915,6.98909701,143.13,142.97,8.73609701]
[1641654311114,6.99007409,143.11,143.01,27.66479]
[1641654311316,53.25469611,143.12,142.99,4.0]
[1641654311517,6.99349605,143.04,143.02,3.19409804]
[1641654311715,5.59263255,143.05,143.02,3.19409804]
[1641654311915,6.99618708,143.03,142.97,59.06991743]
[1641654312116,5.59413187,143.01,142.97,59.06991743]
[1641654312419,5.59413187,143.01,142.94,38.84291418]
[1641654312616,5.59618466,142.96,142.93,96.25914286]
[1641654312817,6.99961502,142.94,142.84,96.25914286]
[1641654313016,27.66479,142.9,142.84,96.25914286]
[1641654313217,5.59935953,142.88,142.84,90.25914286]
[1641654313516,7.00182047,142.87,142.83,24.9973787]
[1641654313718,7.00182047,142.87,142.85,39.31274991]
[1641654313915,5.59935953,142.88,142.85,39.31274991]
[1641654314522,7.00231076,142.86,142.85,39.31274991]
[1641654314721,7.00231076,142.86,142.84,33.71183913]
[1641654315119,27.66479,142.85,142.84,33.71183913]
[1641654315720,27.66479,142.85,142.79,16.91986567]
[1641654316721,27.66479,142.85,142.79,4.0]
[1641654316921,7.0008401,142.89,142.82,4.0]
[1641654317120,7.0008401,142.89,142.79,27.66479]
[1641654317320,7.0008401,142.89,142.87,4.0]
[1641654317521,7.0008401,142.89,142.85,4.0]
[1641654317721,7.0008401,142.89,142.87,4.9111301]
[1641654318321,7.0008401,142.89,142.87,8.9111301]
[1641654318722,6.99692135,142.97,142.88,4.0]
[1641654318922,83.0113,143.03,142.89,4.0]
[1641654318923,6.99765579,142.96,142.89,4.0]
[1641654319122,6.99765579,142.96,142.87,42.39809098]
[1641654319324,6.99765579,142.96,142.89,4.0]
[1641654319522,6.99765579,142.96,142.94,4.0]
[1641654319724,8.02175687,142.95,142.86,18.66786567]
[1641654319925,8.02175687,142.95,142.86,16.91986567]
[1641654319926,7.00157535,142.88,142.86,16.91986567]
[1641654320327,12.59889566,142.9,142.86,16.91986567]
[1641654320728,1.02140685,142.87,142.85,4.0]
[1641654321125,1.02140685,142.87,142.81,4.0]
[1641654321326,1.02140685,142.89,142.86,4.0]
[1641654321525,13.71279395,142.96,142.88,4.0]
[1641654321725,6.71538299,142.96,142.89,4.0]
[1641654321926,1.02139004,142.91,142.89,5.457]
[1641654322127,1.02139004,142.91,142.9,4.0]
[1641654322326,13.71303878,142.96,142.9,4.0]
[1641654322527,6.99643182,142.98,142.92,4.0]
[1641654322729,6.99643182,142.98,142.92,12.61]
[1641654323027,0.91909476,142.96,142.92,12.61]
[1641654323229,0.91909476,142.96,142.93,4.0]
[1641654323629,0.91909476,142.96,142.95,4.0]
[1641654324230,0.91909476,142.97,142.95,4.0]
[1641654324530,0.91909476,142.97,142.96,4.0]
[1641654324930,0.91909476,142.97,142.91,4.0]
[1641654325131,62.32919502,142.92,142.87,16.91986567]
[1641654325332,62.32919502,142.92,142.88,16.91986567]
[1641654325530,0.91909476,142.91,142.88,16.91986567]
[1641654325930,0.91909476,142.91,142.87,4.0]
[1641654326130,12.59479409,142.95,142.87,4.0]
[1641654326131,0.91909476,142.92,142.87,4.0]
[1641654326531,12.59479409,142.95,142.87,4.0]
[1641654326532,0.91909476,142.94,142.87,4.0]
[1641654327032,0.91909476,142.94,142.85,27.66479]
[1641654327236,28.58388476,142.94,142.87,4.0]
[1641654327635,5.59727371,142.93,142.87,4.0]
[1641654327836,5.59727371,142.93,142.86,4.0]
[1641654328036,0.91909476,142.92,142.86,4.0]
[1641654328235,0.91909476,142.92,142.87,4.0]
[1641654328437,0.91909476,142.91,142.87,10.493]
[1641654328838,0.91909476,142.9,142.87,10.493]
[1641654329539,5.59727371,142.93,142.87,10.493]
[1641654329540,0.91909476,142.89,142.87,10.493]
[1641654329939,0.91909476,142.89,142.88,4.0]
[1641654330741,5.59591664,142.97,142.88,4.0]
[1641654330940,12.5893119,143.01,142.87,6.493]
[1641654331142,12.5893119,143.01,142.93,27.66479]
[1641654331341,12.5893119,143.01,142.93,7.185]
[1641654331641,12.59135726,142.99,142.93,7.185]
[1641654332043,6.99790063,142.95,142.93,7.185]
[1641654332446,6.99790063,142.95,142.91,4.0]
[1641654332846,0.79503311,142.94,142.91,4.0]
[1641654333650,0.79503311,142.94,142.92,4.0]
[1641654333848,0.79503311,142.96,142.93,4.0]
[1641654334048,0.79503311,142.96,142.92,6.851]
[1641654334348,0.79503311,142.98,142.95,4.0]
[1641654334548,0.79503311,142.98,142.95,7.925]
[1641654334749,5.59502534,142.99,142.95,7.925]
[1641654334948,6.99863527,142.96,142.91,4.0]
[1641654335149,27.66479,142.94,142.91,4.0]
[1641654336153,27.66479,142.94,142.87,75.80586105]
[1641654336154,40.84279162,142.94,142.87,43.3194436]
[1641654336353,40.84279162,142.94,142.87,39.3194436]
[1641654336552,5.5981966,142.91,142.87,39.3194436]
[1641654336954,19.7113016,142.91,142.85,39.3194436]
[1641654337153,7.00182047,142.87,142.85,33.3194436]
[1641654337352,27.66479,142.86,142.85,27.7185353]
[1641654337954,7.00182047,142.87,142.85,27.7185353]
[1641654338152,28.0072819,142.9,142.84,16.91053717]
[1641654338153,7.00059505,142.9,142.84,16.91053717]
[1641654338352,28.0023802,142.92,142.83,5.671]
[1641654338552,6.99961502,142.92,142.85,4.0]
[1641654338953,6.99961502,142.92,142.83,5.671]
[1641654339152,6.99961502,142.92,142.87,4.0]
[1641654339354,6.99961502,142.92,142.83,27.66479]
[1641654339553,14.89161502,142.92,142.9,4.91752023]
[1641654339753,7.892,142.92,142.82,4.0]
[1641654339953,7.00133025,142.91,142.82,4.0]
[1641654340455,7.00133025,142.91,142.8,58.89532388]
[1641654340656,7.00133025,142.91,142.82,4.0]
[1641654341054,7.00133025,142.91,142.8,58.89532388]
[1641654341253,27.66479,142.87,142.8,58.89532388]
[1641654341455,27.66479,142.87,142.82,4.0]
[1641654341654,7.00304633,142.85,142.8,58.89532388]
[1641654342254,55.6769753,142.87,142.78,62.89532388]
[1641654342255,6.71996886,142.86,142.78,62.89532388]
[1641654342456,7.00476324,142.81,142.78,62.89532388]
[1641654342861,13.72699319,142.81,142.78,58.89532388]
[1641654343161,13.72699319,142.81,142.76,58.89532388]
[1641654343360,27.66479,142.78,142.76,58.89532388]
[1641654343561,34.42979,142.78,142.76,58.89532388]
[1641654343762,41.43602555,142.78,142.76,58.89532388]
[1641654344460,34.67102555,142.78,142.75,4.0]
[1641654344659,6.72222995,142.81,142.76,4.0]
[1641654344861,7.00476324,142.81,142.75,8.755]
[1641654345260,7.00476324,142.81,142.76,4.0]
[1641654345461,7.00525394,142.8,142.73,75.80586105]
[1641654345661,27.66479,142.83,142.73,75.80586105]
[1641654345861,7.00648099,142.78,142.75,4.0]
[1641654346065,7.00648099,142.78,142.73,75.80586105]
[1641654346261,34.38641558,142.83,142.73,75.80586105]
[1641654346762,34.38641558,142.83,142.74,4.0]
[1641654347163,34.38641558,142.83,142.71,90.56011388]
[1641654347362,34.67102555,142.8,142.76,4.0]
[1641654349366,34.67102555,142.8,142.72,4.0]
[1641654349565,34.38641558,142.83,142.77,4.0]
[1641654349766,7.00525394,142.82,142.77,4.0]
[1641654349966,7.8009396,142.82,142.77,4.0]
[1641654350167,0.79568566,142.82,142.75,8.273]
[1641654350372,7.00182047,142.89,142.81,8.0]
[1641654350568,7.00182047,142.89,142.82,5.75]
[1641654350768,7.00182047,142.89,142.82,1.75]
[1641654351167,7.00182047,142.89,142.83,4.0]
[1641654351367,7.00182047,142.89,142.83,27.66479]
[1641654351572,7.00182047,142.89,142.84,14.76473842]
[1641654351769,7.00182047,142.89,142.85,4.0]
[1641654351968,7.00182047,142.89,142.84,14.76473842]
[1641654352368,7.00280112,142.87,142.84,14.76473842]
[1641654352569,7.00402732,142.85,142.84,14.76473842]
[1641654352768,7.00402732,142.85,142.82,3.18064892]
[1641654353270,7.00599012,142.83,142.77,58.89532388]
[1641654353469,7.00599012,142.83,142.78,4.0]
[1641654353470,27.66479,142.81,142.78,4.0]
[1641654353769,7.149,142.83,142.78,4.0]
[1641654354368,7.149,142.83,142.79,4.0]
[1641654354369,7.00525394,142.82,142.79,4.0]
[1641654354570,7.00525394,142.82,142.81,4.0]
[1641654355769,7.00525394,142.82,142.79,4.0]
[1641654355971,7.00525394,142.82,142.78,4.0]
[1641654356369,7.00648099,142.79,142.73,90.56011388]
[1641654356571,7.00549932,142.81,142.73,90.56011388]
[1641654356770,7.00549932,142.81,142.79,4.0]
[1641654356970,7.00549932,142.81,142.78,4.0]
[1641654357171,12.74049932,142.81,142.78,4.0]
[1641654357774,7.00770848,142.79,142.77,4.0]
[1641654357971,7.00770848,142.79,142.78,4.0]
[1641654358575,7.00770848,142.79,142.74,56.30386643]
[1641654358774,7.00770848,142.79,142.76,4.0]
[1641654358973,7.00770848,142.79,142.74,56.30386643]
[1641654359173,7.00770848,142.79,142.73,27.66479]
[1641654359174,7.00770848,142.79,142.73,67.05811926]
[1641654360174,7.00770848,142.79,142.78,4.0]
[1641654360375,34.74281679,142.84,142.78,4.0]
[1641654360575,6.72081953,142.84,142.8,4.0]
[1641654361475,6.72081953,142.84,142.77,4.0]
[1641654361676,7.00549932,142.81,142.77,4.0]
[1641654361876,7.00549932,142.81,142.76,39.39332926]
[1641654362075,7.00549932,142.81,142.77,4.0]
[1641654362276,7.00525394,142.82,142.79,4.0]
[1641654362977,7.00525394,142.82,142.75,39.39332926]
[1641654363179,7.00525394,142.82,142.77,4.0]
[1641654363479,7.00648099,142.79,142.76,39.39332926]
[1641654363680,5.60350345,142.77,142.76,43.39332926]
[1641654364079,7.00549932,142.81,142.76,4.0]
[1641654364278,13.7260449,142.83,142.74,39.39332926]
[1641654364480,13.7260449,142.83,142.74,43.39332926]
[1641654364680,13.7260449,142.83,142.79,4.0]
[1641654364882,6.72046342,142.85,142.79,7.178]
[1641654365081,8.06225245,142.89,142.79,7.178]
[1641654365281,8.06225245,142.89,142.84,4.0]
[1641654365485,5.59919644,142.88,142.84,8.726]
[1641654365884,0.79545534,142.87,142.84,8.726]
[1641654366482,0.79545534,142.87,142.82,67.05811926]
[1641654366682,2.52626444,142.89,142.83,4.0]
[1641654366882,2.52626444,142.89,142.82,39.39332926]
[1641654367084,7.00133025,142.9,142.83,39.39332926]
[1641654367283,27.66479,142.93,142.83,39.39332926]
[1641654367685,27.66479,142.93,142.85,4.0]
[1641654367885,27.66479,142.93,142.86,4.0]
[1641654368286,7.00157535,142.91,142.88,4.0]
[1641654368487,27.66479,142.93,142.88,7.208]
[1641654368687,27.66479,142.95,142.88,7.208]
[1641654369095,27.66479,142.95,142.89,4.0]
[1641654369987,27.66479,142.95,142.9,4.0]
[1641654370187,27.66479,142.95,142.92,4.0]
[1641654370387,6.99888018,142.96,142.93,4.0]
[1641654370588,6.99888018,142.96,142.89,4.0]
[1641654370791,6.99888018,142.96,142.93,4.0]
[1641654371189,6.99888018,142.96,142.89,9.661]
[1641654371391,0.7952055,142.95,142.93,4.0]
[1641654371590,0.7952055,142.95,142.89,37.32579]
[1641654371789,0.7952055,142.95,142.89,33.32579]
[1641654371989,0.7952055,142.95,142.92,4.0]
[1641654372189,0.7952055,142.95,142.88,60.3651002]
[1641654372390,5.59685048,142.94,142.88,56.3651002]
[1641654372589,5.59685048,142.94,142.87,54.0]
[1641654372590,5.59685048,142.94,142.87,93.39332926]
[1641654372791,5.59685048,142.94,142.93,4.0]
[1641654373091,6.99888018,142.96,142.93,12.659]
[1641654373293,6.71438232,142.98,142.95,4.0]
[1641654373490,6.71438232,142.98,142.96,4.0]
[1641654373892,6.71438232,142.98,142.93,36.32379]
[1641654374292,13.70797905,143.03,142.96,4.0]
[1641654374492,13.70797905,143.03,142.96,10.762]
[1641654374693,6.7122814,143.03,142.96,10.762]
[1641654375094,6.7122814,143.03,143.02,4.0]
[1641654375296,6.7122814,143.03,143.02,15.382]
[1641654375495,11.59402114,143.09,143.02,70.71158]
[1641654375693,11.59402114,143.09,143.07,4.0]
[1641654375993,11.59402114,143.09,143.07,7.319]
[1641654376495,11.59402114,143.09,143.08,4.0]
[1641654376695,11.59402114,143.09,143.07,7.319]
[1641654376896,11.59402114,143.09,143.02,120.71158]
[1641654377099,11.59402114,143.09,143.02,116.71158]
[1641654377595,11.59402114,143.09,143.02,93.04679]
[1641654377796,5.59224358,143.06,143.02,61.382]
[1641654378196,5.59264915,143.05,143.02,61.382]
[1641654378396,5.59264915,143.05,143.02,54.0]
[1641654378800,5.59264915,143.05,143.02,58.0]
[1641654379198,6.99251801,143.09,143.04,4.0]
[1641654379398,6.99251801,143.09,143.02,54.0]
[1641654379600,6.70884948,143.1,143.08,4.0]
[1641654379998,5.58958703,143.13,143.03,5.747]
[1641654380198,6.99154024,143.11,143.02,85.66479]
[1641654380400,5.59157595,143.08,143.03,4.0]
[1641654380802,5.59157595,143.08,143.02,81.66479]
[1641654380998,5.59287954,143.04,143.02,54.0]
[1641654381700,6.99398517,143.06,143.02,54.0]
[1641654381898,34.37455627,143.08,143.02,54.0]
[1641654382298,34.37455627,143.08,143.02,58.0]
[1641654382498,34.37455627,143.08,143.02,54.0]
[1641654382698,34.37455627,143.08,143.02,58.0]
[1641654382898,5.5925488,143.05,143.02,54.0]
[1641654383299,33.25611566,143.08,143.03,4.0]
[1641654383500,33.25611566,143.08,143.02,54.0]
[1641654383702,5.59132566,143.08,143.02,54.0]
[1641654383901,5.59132566,143.08,143.05,4.0]
[1641654384303,5.59132566,143.08,143.07,4.0]
[1641654384503,13.69921196,143.12,143.07,4.0]
[1641654384703,13.69921196,143.12,143.06,4.0]
[1641654386104,13.69921196,143.12,143.11,4.0]
[1641654386305,6.98958552,143.15,143.11,4.0]
[1641654386505,6.98958552,143.15,143.1,8.823]
[1641654386506,8.04653874,143.17,143.1,8.823]
[1641654386706,8.04653874,143.17,143.11,4.0]
[1641654386907,5.58896903,143.14,143.11,4.0]
[1641654388006,6.70554362,143.17,143.09,4.0]
[1641654388207,5.58896251,143.14,143.09,4.0]
[1641654388610,5.58896251,143.14,143.07,4.0]
[1641654388812,5.59053277,143.1,143.04,4.0]
[1641654389210,5.59053277,143.1,143.02,54.0]
[1641654389411,5.59053277,143.1,143.05,4.0]
[1641654389809,6.99325151,143.08,143.03,27.66479]
[1641654390212,5.59200692,143.07,143.05,4.0]
[1641654390415,5.59200692,143.07,143.06,4.0]
[1641654390712,27.97300605,143.11,143.03,27.66479]
[1641654390713,12.58173078,143.11,143.05,4.0]
[1641654390915,6.99300699,143.08,143.02,54.0]
[1641654391112,6.99300699,143.08,143.07,11.91624634]
[1641654391316,6.99300699,143.08,143.02,58.0]
[1641654391713,6.99300699,143.08,143.02,54.0]
[1641654391915,6.99300699,143.08,143.05,4.0]
[1641654392614,6.99300699,143.08,143.02,54.0]
[1641654393015,6.99300699,143.08,143.04,4.0]
[1641654393316,5.59084444,143.1,143.02,54.0]
[1641654393715,6.99422976,143.06,143.02,54.0]
[1641654393916,33.25790537,143.04,143.02,54.0]
[1641654394115,33.25790537,143.04,142.97,14.6672135]
[1641654394315,5.59542771,142.98,142.97,9.6672135]
[1641654394717,5.59542771,142.98,142.96,4.0]
[1641654394916,5.59489263,142.99,142.96,4.0]
[1641654395118,5.59489263,142.99,142.97,4.0]
[1641654395316,5.59489263,142.99,142.92,4.0]
[1641654395517,5.59489263,142.99,142.96,4.0]
[1641654395717,5.59489263,142.99,142.92,4.0]
[1641654395917,13.70814005,143.03,142.98,4.0]
[1641654396518,13.70814005,143.03,142.97,4.0]
[1641654396717,13.70814005,143.03,142.96,4.0]